[Event "*** SCC Grand Prix: Titled Tuesday Blitz"]
[Site "Chess.com"]
[Date "2020.10.13"]
[Round "10"]
[White "Loy_Konstantin"]
[Black "PotapovaM"]
[Result "0-1"]
[WhiteElo "2366"]
[BlackElo "2535"]
[TimeControl "180+1"]
[EndTime "11:54:41 PDT"]
[Termination "PotapovaM won on time"]

1. e4 {[%clk 0:03:00.9]} 1... c5 {[%clk 0:02:59.3]} 2. Nf3 {[%clk 0:03:00.9]}
2... d6 {[%clk 0:02:59.5]} 3. d4 {[%clk 0:03:01.4]} 3... cxd4 {[%clk 0:03:00.4]}
4. Qxd4 {[%clk 0:03:02]} 4... Nc6 {[%clk 0:03:00.1]} 5. Bb5 {[%clk 0:03:01.9]}
5... Bd7 {[%clk 0:03:00.5]} 6. Bxc6 {[%clk 0:03:01.7]} 6... Bxc6 {[%clk
0:03:01.4]} 7. Nc3 {[%clk 0:03:02]} 7... Nf6 {[%clk 0:03:01.6]} 8. Bg5 {[%clk
0:03:02.2]} 8... e6 {[%clk 0:03:01.5]} 9. O-O-O {[%clk 0:03:02.5]} 9... Be7
{[%clk 0:03:01.5]} 10. Rhe1 {[%clk 0:03:03]} 10... O-O {[%clk 0:02:57.5]} 11. e5
{[%clk 0:03:03.2]} 11... dxe5 {[%clk 0:02:57.1]} 12. Qh4 {[%clk 0:03:03.7]}
12... Qc7 {[%clk 0:02:53.1]} 13. Nxe5 {[%clk 0:03:03.8]} 13... Rfd8 {[%clk
0:02:52.9]} 14. Ng4 {[%clk 0:03:03.6]} 14... Rxd1+ {[%clk 0:02:46]} 15. Rxd1
{[%clk 0:03:03.1]} 15... Nxg4 {[%clk 0:02:44.7]} 16. Bxe7 {[%clk 0:03:02.7]}
16... Nh6 {[%clk 0:02:40.1]} 17. Bd6 {[%clk 0:02:45.9]} 17... Nf5 {[%clk
0:02:32.9]} 18. Bxc7 {[%clk 0:02:43.2]} 18... Nxh4 {[%clk 0:02:32.7]} 19. g3
{[%clk 0:02:43.7]} 19... Nf3 {[%clk 0:02:13.2]} 20. h4 {[%clk 0:02:43]} 20...
Kf8 {[%clk 0:01:54.1]} 21. Rd8+ {[%clk 0:02:37.7]} 21... Rxd8 {[%clk 0:01:53.7]}
22. Bxd8 {[%clk 0:02:38.6]} 22... Ke8 {[%clk 0:01:54.4]} 23. Bc7 {[%clk
0:02:37.4]} 23... f6 {[%clk 0:01:45.5]} 24. Bf4 {[%clk 0:02:32.9]} 24... g5
{[%clk 0:01:37.2]} 25. hxg5 {[%clk 0:02:15.1]} 25... fxg5 {[%clk 0:01:38]} 26.
Be3 {[%clk 0:02:16]} 26... h5 {[%clk 0:01:37.3]} 27. Kd1 {[%clk 0:01:51.1]}
27... h4 {[%clk 0:01:21.6]} 28. gxh4 {[%clk 0:01:50.8]} 28... gxh4 {[%clk
0:01:22.5]} 29. Ke2 {[%clk 0:01:49.7]} 29... h3 {[%clk 0:01:17]} 30. Kf1 {[%clk
0:01:49.5]} 30... e5 {[%clk 0:00:55]} 31. Bxa7 {[%clk 0:01:19.6]} 31... Ne1
{[%clk 0:00:39.8]} 32. Kg1 {[%clk 0:01:07.2]} 32... Bg2 {[%clk 0:00:37.8]} 33.
Kh2 {[%clk 0:00:55.8]} 33... Nf3+ {[%clk 0:00:36.7]} 34. Kg3 {[%clk 0:00:55.7]}
34... Bf1 {[%clk 0:00:35.6]} 0-1

[Event "*** SCC Grand Prix: Titled Tuesday Blitz"]
[Site "Chess.com"]
[Date "2020.10.13"]
[Round "10"]
[White "glebus008"]
[Black "shnitez"]
[Result "1/2-1/2"]
[WhiteElo "2328"]
[BlackElo "2492"]
[TimeControl "180+1"]
[EndTime "11:54:42 PDT"]
[Termination "Game drawn by repetition"]

1. e4 {[%clk 0:03:00.9]} 1... c5 {[%clk 0:02:58.9]} 2. Nf3 {[%clk 0:03:00]} 2...
e6 {[%clk 0:02:58.3]} 3. g3 {[%clk 0:02:59.4]} 3... b6 {[%clk 0:02:51.3]} 4. Bg2
{[%clk 0:02:58.9]} 4... Bb7 {[%clk 0:02:51.9]} 5. Qe2 {[%clk 0:02:57.8]} 5...
Nf6 {[%clk 0:02:48.8]} 6. d3 {[%clk 0:02:56.8]} 6... d5 {[%clk 0:02:40.6]} 7.
Nbd2 {[%clk 0:02:51.5]} 7... dxe4 {[%clk 0:02:35.6]} 8. Nxe4 {[%clk 0:02:48.5]}
8... Nxe4 {[%clk 0:02:35.1]} 9. dxe4 {[%clk 0:02:49.1]} 9... Ba6 {[%clk
0:02:32.1]} 10. Qe3 {[%clk 0:02:47.6]} 10... Nc6 {[%clk 0:02:29.2]} 11. c3
{[%clk 0:02:46.8]} 11... Be7 {[%clk 0:02:26.1]} 12. Bf1 {[%clk 0:02:42.8]} 12...
Qc8 {[%clk 0:02:17.7]} 13. Bxa6 {[%clk 0:02:39.3]} 13... Qxa6 {[%clk 0:02:18.6]}
14. Qe2 {[%clk 0:02:38.9]} 14... Qb7 {[%clk 0:02:16.6]} 15. O-O {[%clk
0:02:37.3]} 15... O-O {[%clk 0:02:13.5]} 16. Bf4 {[%clk 0:02:31]} 16... Rfd8
{[%clk 0:01:58.6]} 17. Rfd1 {[%clk 0:02:30.7]} 17... h6 {[%clk 0:01:52.3]} 18.
h4 {[%clk 0:02:28.1]} 18... b5 {[%clk 0:01:47.3]} 19. Rxd8+ {[%clk 0:02:20]}
19... Rxd8 {[%clk 0:01:46.2]} 20. Rd1 {[%clk 0:02:20.9]} 20... Rxd1+ {[%clk
0:01:44.3]} 21. Qxd1 {[%clk 0:02:21.8]} 21... Na5 {[%clk 0:01:18.5]} 22. Qe2
{[%clk 0:01:58.1]} 22... c4 {[%clk 0:01:12.6]} 23. Nd4 {[%clk 0:01:52.4]} 23...
Qd7 {[%clk 0:01:10.6]} 24. a3 {[%clk 0:01:37.6]} 24... a6 {[%clk 0:01:08.1]} 25.
Kg2 {[%clk 0:01:25]} 25... Bc5 {[%clk 0:01:06.4]} 26. Be3 {[%clk 0:01:23.8]}
26... Bxd4 {[%clk 0:01:03.6]} 27. Bxd4 {[%clk 0:01:08.7]} 27... Nc6 {[%clk
0:00:59.6]} 28. Qe3 {[%clk 0:00:59.3]} 28... e5 {[%clk 0:00:58.3]} 29. Bb6
{[%clk 0:00:53.9]} 29... Qd6 {[%clk 0:00:49.1]} 30. Bc5 {[%clk 0:00:48.6]} 30...
Qd1 {[%clk 0:00:45.3]} 31. Bb4 {[%clk 0:00:37.4]} 31... Qc2 {[%clk 0:00:30.8]}
32. Qf3 {[%clk 0:00:22.4]} 32... Qxb2 {[%clk 0:00:25.8]} 33. Qf5 {[%clk
0:00:22.4]} 33... Nxb4 {[%clk 0:00:23.1]} 34. Qc8+ {[%clk 0:00:21]} 34... Kh7
{[%clk 0:00:21.7]} 35. Qf5+ {[%clk 0:00:21.6]} 35... Kh8 {[%clk 0:00:20.3]} 36.
Qc8+ {[%clk 0:00:20.4]} 36... Kh7 {[%clk 0:00:20]} 37. Qf5+ {[%clk 0:00:21.3]}
37... Kg8 {[%clk 0:00:15.5]} 38. Qc8+ {[%clk 0:00:21]} 38... Kh7 {[%clk
0:00:15]} 1/2-1/2

[Event "*** SCC Grand Prix: Titled Tuesday Blitz"]
[Site "Chess.com"]
[Date "2020.10.13"]
[Round "10"]
[White "FMJoseHerrera"]
[Black "karenzadita"]
[Result "0-1"]
[WhiteElo "2545"]
[BlackElo "2385"]
[TimeControl "180+1"]
[EndTime "11:54:43 PDT"]
[Termination "karenzadita won on time"]

1. Nf3 {[%clk 0:03:00.9]} 1... c5 {[%clk 0:02:59.8]} 2. g3 {[%clk 0:03:01.1]}
2... g6 {[%clk 0:02:59.4]} 3. Bg2 {[%clk 0:03:02]} 3... Bg7 {[%clk 0:02:59.7]}
4. d3 {[%clk 0:03:02.9]} 4... Nc6 {[%clk 0:02:59.5]} 5. Nc3 {[%clk 0:03:03.6]}
5... Nf6 {[%clk 0:02:59.6]} 6. h4 {[%clk 0:03:04.3]} 6... h5 {[%clk 0:02:56.2]}
7. e4 {[%clk 0:03:04.2]} 7... d6 {[%clk 0:02:53.4]} 8. Bg5 {[%clk 0:03:04.6]}
8... O-O {[%clk 0:02:51.9]} 9. Qd2 {[%clk 0:03:04.8]} 9... Bg4 {[%clk
0:02:46.2]} 10. O-O {[%clk 0:03:01.1]} 10... Bxf3 {[%clk 0:02:25.6]} 11. Bxf3
{[%clk 0:03:00.7]} 11... Nd4 {[%clk 0:02:26.3]} 12. Bg2 {[%clk 0:03:00.9]} 12...
b5 {[%clk 0:02:27]} 13. e5 {[%clk 0:02:49.7]} 13... dxe5 {[%clk 0:02:22.4]} 14.
Bxa8 {[%clk 0:02:49.5]} 14... Qxa8 {[%clk 0:02:23.3]} 15. f3 {[%clk 0:02:37.7]}
15... Nxf3+ {[%clk 0:02:21.6]} 16. Rxf3 {[%clk 0:02:38.3]} 16... Qxf3 {[%clk
0:02:21.8]} 17. Qg2 {[%clk 0:02:39.2]} 17... Qxg2+ {[%clk 0:02:11.8]} 18. Kxg2
{[%clk 0:02:40.1]} 18... b4 {[%clk 0:02:12.2]} 19. Ne4 {[%clk 0:02:35.8]} 19...
Nxe4 {[%clk 0:02:10.3]} 20. dxe4 {[%clk 0:02:36.7]} 20... f6 {[%clk 0:02:05.5]}
21. Be3 {[%clk 0:02:36.3]} 21... Rc8 {[%clk 0:02:05.1]} 22. Rd1 {[%clk
0:02:35.9]} 22... Kf7 {[%clk 0:02:03]} 23. Rd7 {[%clk 0:02:35.3]} 23... a6
{[%clk 0:02:02.7]} 24. Ra7 {[%clk 0:02:34.4]} 24... Rc6 {[%clk 0:02:03.1]} 25.
Kf3 {[%clk 0:02:34.4]} 25... f5 {[%clk 0:02:01.2]} 26. Rd7 {[%clk 0:01:59.8]}
26... Ke6 {[%clk 0:01:51]} 27. Rd5 {[%clk 0:01:59]} 27... c4 {[%clk 0:01:51.3]}
28. Ra5 {[%clk 0:01:50.6]} 28... Bf6 {[%clk 0:01:42.3]} 29. Bc5 {[%clk
0:01:49.4]} 29... c3 {[%clk 0:01:33.8]} 30. b3 {[%clk 0:01:47.2]} 30... f4
{[%clk 0:01:28.1]} 31. Bxb4 {[%clk 0:01:34.8]} 31... fxg3 {[%clk 0:01:17.5]} 32.
Kxg3 {[%clk 0:01:35.7]} 32... g5 {[%clk 0:01:17.5]} 33. hxg5 {[%clk 0:01:34.9]}
33... Bxg5 {[%clk 0:01:18.4]} 34. Bc5 {[%clk 0:01:22.2]} 34... Kf6 {[%clk
0:01:14.9]} 35. b4 {[%clk 0:01:19.7]} 35... Kg6 {[%clk 0:01:10.3]} 36. a4 {[%clk
0:01:17.9]} 36... h4+ {[%clk 0:01:03.5]} 37. Kg4 {[%clk 0:01:17.1]} 37... Rf6
{[%clk 0:01:02]} 38. Kh3 {[%clk 0:00:57]} 38... Rf3+ {[%clk 0:00:57.1]} 39. Kg2
{[%clk 0:00:56.4]} 39... Rf4 {[%clk 0:00:51.9]} 40. Rxa6+ {[%clk 0:00:55.1]}
40... Kh5 {[%clk 0:00:51.1]} 41. b5 {[%clk 0:00:51.3]} 41... Kg4 {[%clk
0:00:50.2]} 42. b6 {[%clk 0:00:50.9]} 42... h3+ {[%clk 0:00:50.1]} 43. Kg1
{[%clk 0:00:44.3]} 43... Kg3 {[%clk 0:00:48]} 0-1

[Event "*** SCC Grand Prix: Titled Tuesday Blitz"]
[Site "Chess.com"]
[Date "2020.10.13"]
[Round "10"]
[White "WuinaterJr"]
[Black "allvim"]
[Result "1/2-1/2"]
[WhiteElo "2519"]
[BlackElo "2333"]
[TimeControl "180+1"]
[EndTime "11:54:44 PDT"]
[Termination "Game drawn by repetition"]

1. d4 {[%clk 0:03:00.6]} 1... Nf6 {[%clk 0:02:59.7]} 2. c4 {[%clk 0:03:00.7]}
2... e5 {[%clk 0:02:54.5]} 3. Nf3 {[%clk 0:03:01.2]} 3... e4 {[%clk 0:02:24.9]}
4. Nfd2 {[%clk 0:03:00.3]} 4... c6 {[%clk 0:02:19.8]} 5. e3 {[%clk 0:02:59.2]}
5... d5 {[%clk 0:02:17.1]} 6. Nc3 {[%clk 0:02:58.8]} 6... Bd6 {[%clk 0:02:09.5]}
7. Be2 {[%clk 0:02:53]} 7... O-O {[%clk 0:02:08.2]} 8. O-O {[%clk 0:02:45.2]}
8... Re8 {[%clk 0:01:16.9]} 9. a3 {[%clk 0:02:37.9]} 9... a5 {[%clk 0:01:14.8]}
10. Rb1 {[%clk 0:02:32.7]} 10... Bf5 {[%clk 0:01:14.6]} 11. c5 {[%clk
0:02:19.8]} 11... Bc7 {[%clk 0:01:11.5]} 12. b4 {[%clk 0:02:19.5]} 12... axb4
{[%clk 0:01:06.8]} 13. axb4 {[%clk 0:02:20.4]} 13... b6 {[%clk 0:00:52.6]} 14.
cxb6 {[%clk 0:02:11.6]} 14... Bxb6 {[%clk 0:00:53.5]} 15. Nb3 {[%clk 0:02:11.6]}
15... Nbd7 {[%clk 0:00:52]} 16. Nc5 {[%clk 0:02:03.9]} 16... Nxc5 {[%clk
0:00:49.7]} 17. bxc5 {[%clk 0:02:03.2]} 17... Bc7 {[%clk 0:00:50]} 18. Na4
{[%clk 0:01:44.6]} 18... h5 {[%clk 0:00:37.8]} 19. Bd2 {[%clk 0:01:35.5]} 19...
h4 {[%clk 0:00:34.6]} 20. Nb6 {[%clk 0:01:35.2]} 20... Rb8 {[%clk 0:00:21.1]}
21. Ba5 {[%clk 0:01:34.5]} 21... Nd7 {[%clk 0:00:17.8]} 22. Nxd7 {[%clk
0:01:32.6]} 22... Qxd7 {[%clk 0:00:18.7]} 23. Bxc7 {[%clk 0:01:30.9]} 23... Qxc7
{[%clk 0:00:19.6]} 24. Qc2 {[%clk 0:01:23.2]} 24... Re6 {[%clk 0:00:14.5]} 25.
Rxb8+ {[%clk 0:01:18.6]} 25... Qxb8 {[%clk 0:00:15.4]} 26. Rb1 {[%clk
0:01:17.3]} 26... Qd8 {[%clk 0:00:15.9]} 27. Bf1 {[%clk 0:01:09.5]} 27... Rg6
{[%clk 0:00:15.4]} 28. f4 {[%clk 0:01:07.4]} 28... h3 {[%clk 0:00:09.6]} 29. g3
{[%clk 0:01:06.1]} 29... Bg4 {[%clk 0:00:08.7]} 30. Rb6 {[%clk 0:01:05.1]} 30...
Qa8 {[%clk 0:00:05.8]} 31. Qb2 {[%clk 0:00:57.6]} 31... Qa4 {[%clk 0:00:04.8]}
32. Qb3 {[%clk 0:00:22.4]} 32... Qa1 {[%clk 0:00:04.7]} 33. Qb2 {[%clk
0:00:20.5]} 33... Qa4 {[%clk 0:00:04.6]} 34. Qb3 {[%clk 0:00:20.4]} 34... Qa1
{[%clk 0:00:04.9]} 35. Qb2 {[%clk 0:00:20]} 35... Qa4 {[%clk 0:00:05.2]} 1/2-1/2

[Event "*** SCC Grand Prix: Titled Tuesday Blitz"]
[Site "Chess.com"]
[Date "2020.10.13"]
[Round "10"]
[White "Guenplen"]
[Black "Tayson_7"]
[Result "1-0"]
[WhiteElo "2868"]
[BlackElo "2633"]
[TimeControl "180+1"]
[EndTime "11:54:45 PDT"]
[Termination "Guenplen won on time"]

1. d4 {[%clk 0:03:00.9]} 1... Nf6 {[%clk 0:02:59.4]} 2. Bf4 {[%clk 0:03:01]}
2... g6 {[%clk 0:02:56.6]} 3. c3 {[%clk 0:03:01]} 3... Bg7 {[%clk 0:02:56.9]} 4.
h3 {[%clk 0:03:01.5]} 4... d6 {[%clk 0:02:57.1]} 5. Nd2 {[%clk 0:03:01.6]} 5...
O-O {[%clk 0:02:57.7]} 6. Ngf3 {[%clk 0:03:01.3]} 6... Nc6 {[%clk 0:02:57]} 7.
e4 {[%clk 0:02:51.7]} 7... e5 {[%clk 0:02:55.9]} 8. dxe5 {[%clk 0:02:49.8]} 8...
dxe5 {[%clk 0:02:47.9]} 9. Be3 {[%clk 0:02:44.7]} 9... Qe7 {[%clk 0:02:42.6]}
10. Bb5 {[%clk 0:02:40.1]} 10... Rd8 {[%clk 0:02:29.7]} 11. Qc2 {[%clk
0:02:34.2]} 11... Ne8 {[%clk 0:02:22.9]} 12. O-O {[%clk 0:02:29.2]} 12... Nd6
{[%clk 0:02:19]} 13. Bxc6 {[%clk 0:02:25.4]} 13... bxc6 {[%clk 0:02:18.8]} 14.
Rfd1 {[%clk 0:02:15.8]} 14... a5 {[%clk 0:01:52.6]} 15. a4 {[%clk 0:02:05]}
15... Ba6 {[%clk 0:01:47]} 16. b4 {[%clk 0:01:56.4]} 16... Nc4 {[%clk
0:01:30.9]} 17. Nxc4 {[%clk 0:01:53.6]} 17... Bxc4 {[%clk 0:01:31.8]} 18. Bc5
{[%clk 0:01:45.2]} 18... Qe8 {[%clk 0:01:29.1]} 19. Rxd8 {[%clk 0:01:42.8]}
19... Qxd8 {[%clk 0:01:30]} 20. Rd1 {[%clk 0:01:40.7]} 20... Qe8 {[%clk
0:01:23.6]} 21. Nd2 {[%clk 0:01:15.8]} 21... Qe6 {[%clk 0:01:19.9]} 22. Nxc4
{[%clk 0:01:13]} 22... Qxc4 {[%clk 0:01:20.8]} 23. Qd3 {[%clk 0:01:12.7]} 23...
Qb3 {[%clk 0:01:13.5]} 24. bxa5 {[%clk 0:01:06]} 24... Bf6 {[%clk 0:01:00.6]}
25. a6 {[%clk 0:01:00.2]} 25... Qxa4 {[%clk 0:00:45]} 26. a7 {[%clk 0:00:59.7]}
26... Kg7 {[%clk 0:00:45.9]} 27. Rb1 {[%clk 0:00:55.2]} 27... h6 {[%clk
0:00:40.1]} 28. Qd7 {[%clk 0:00:31.7]} 28... h5 {[%clk 0:00:05.2]} 29. Rb8
{[%clk 0:00:16.1]} 29... Rxa7 {[%clk 0:00:03.9]} 30. Bf8+ {[%clk 0:00:12.4]} 1-0

[Event "*** SCC Grand Prix: Titled Tuesday Blitz"]
[Site "Chess.com"]
[Date "2020.10.13"]
[Round "10"]
[White "Alexander_Moskalenko"]
[Black "tptagain"]
[Result "0-1"]
[WhiteElo "2815"]
[BlackElo "2875"]
[TimeControl "180+1"]
[EndTime "11:54:48 PDT"]
[Termination "tptagain won on time"]

1. e4 {[%clk 0:03:00.9]} 1... c6 {[%clk 0:02:53.4]} 2. Nc3 {[%clk 0:02:59.7]}
2... g6 {[%clk 0:02:52.6]} 3. Nf3 {[%clk 0:03:00.6]} 3... Bg7 {[%clk 0:02:52.8]}
4. g3 {[%clk 0:02:53.4]} 4... d5 {[%clk 0:02:53]} 5. Bg2 {[%clk 0:02:52.9]} 5...
Nf6 {[%clk 0:02:48.2]} 6. Qe2 {[%clk 0:02:51]} 6... d4 {[%clk 0:02:47.2]} 7. Nd1
{[%clk 0:02:50.9]} 7... c5 {[%clk 0:02:46.9]} 8. d3 {[%clk 0:02:51.1]} 8... Nc6
{[%clk 0:02:46.8]} 9. O-O {[%clk 0:02:51.7]} 9... e5 {[%clk 0:02:46.9]} 10. a4
{[%clk 0:02:48.2]} 10... O-O {[%clk 0:02:44]} 11. Ne1 {[%clk 0:02:45.1]} 11...
Ne8 {[%clk 0:02:25.8]} 12. f4 {[%clk 0:01:36.4]} 12... exf4 {[%clk 0:02:22.4]}
13. gxf4 {[%clk 0:01:32.4]} 13... f5 {[%clk 0:02:22.1]} 14. e5 {[%clk
0:01:32.8]} 14... Be6 {[%clk 0:02:22.1]} 15. Nf2 {[%clk 0:01:33]} 15... Bd5
{[%clk 0:02:21.6]} 16. Bd2 {[%clk 0:01:28.3]} 16... Nc7 {[%clk 0:02:21.1]} 17.
c4 {[%clk 0:01:21.3]} 17... dxc3 {[%clk 0:02:20.9]} 18. bxc3 {[%clk 0:01:22.2]}
18... Bxg2 {[%clk 0:02:20.8]} 19. Nxg2 {[%clk 0:01:22.5]} 19... Qd7 {[%clk
0:02:15.1]} 20. Be3 {[%clk 0:01:19.2]} 20... b6 {[%clk 0:02:13.5]} 21. Rfd1
{[%clk 0:01:18.9]} 21... Nd5 {[%clk 0:02:11.5]} 22. Bd2 {[%clk 0:01:18.8]} 22...
Nd8 {[%clk 0:02:07.9]} 23. h4 {[%clk 0:01:19.2]} 23... Ne6 {[%clk 0:02:06.1]}
24. Qf3 {[%clk 0:01:19.8]} 24... Rfd8 {[%clk 0:02:02.3]} 25. h5 {[%clk
0:01:17.4]} 25... Bh6 {[%clk 0:02:00.8]} 26. hxg6 {[%clk 0:01:17]} 26... hxg6
{[%clk 0:02:00.9]} 27. Nh3 {[%clk 0:01:17.9]} 27... Kf7 {[%clk 0:01:58.5]} 28.
Rac1 {[%clk 0:01:09.1]} 28... Qxa4 {[%clk 0:01:53.9]} 29. Kf2 {[%clk 0:01:06.2]}
29... Qd7 {[%clk 0:01:43.4]} 30. Rh1 {[%clk 0:01:04.7]} 30... Rh8 {[%clk
0:01:43.6]} 31. Ke2 {[%clk 0:00:56.4]} 31... b5 {[%clk 0:01:40.6]} 32. Kf2
{[%clk 0:00:44.4]} 32... a5 {[%clk 0:01:39.6]} 33. Ne3 {[%clk 0:00:08.3]} 33...
Ndxf4 {[%clk 0:01:34.1]} 34. Nxf5 {[%clk 0:00:06.4]} 34... Nxd3+ {[%clk
0:01:24.1]} 35. Kg2 {[%clk 0:00:06.6]} 35... gxf5 {[%clk 0:01:20.9]} 36. Qxf5+
{[%clk 0:00:06.6]} 36... Ke8 {[%clk 0:01:16.7]} 37. Qg6+ {[%clk 0:00:03.7]}
37... Qf7 {[%clk 0:01:15.7]} 38. Qxd3 {[%clk 0:00:03.7]} 38... Rg8+ {[%clk
0:01:15.6]} 39. Kh2 {[%clk 0:00:04.3]} 39... Bxd2 {[%clk 0:01:07]} 40. Qxd2
{[%clk 0:00:04]} 40... Rd8 {[%clk 0:01:06.7]} 41. Qe2 {[%clk 0:00:04.6]} 41...
Qh7 {[%clk 0:00:42]} 42. Qxb5+ {[%clk 0:00:03.3]} 42... Ke7 {[%clk 0:00:42.3]}
43. Qb7+ {[%clk 0:00:02.7]} 43... Rd7 {[%clk 0:00:42.6]} 44. Qf3 {[%clk
0:00:03.4]} 44... Rd2+ {[%clk 0:00:42]} 0-1

[Event "*** SCC Grand Prix: Titled Tuesday Blitz"]
[Site "Chess.com"]
[Date "2020.10.13"]
[Round "10"]
[White "QuintilianoR"]
[Black "GMSrinath"]
[Result "1-0"]
[WhiteElo "2642"]
[BlackElo "2791"]
[TimeControl "180+1"]
[EndTime "11:54:49 PDT"]
[Termination "QuintilianoR won on time"]

1. d4 {[%clk 0:03:00.9]} 1... Nf6 {[%clk 0:02:55.6]} 2. c4 {[%clk 0:03:00.9]}
2... e6 {[%clk 0:02:55.2]} 3. Nf3 {[%clk 0:03:01.3]} 3... d5 {[%clk 0:02:55.7]}
4. Nc3 {[%clk 0:03:01.7]} 4... Bb4 {[%clk 0:02:56.4]} 5. Bg5 {[%clk 0:03:01.3]}
5... h6 {[%clk 0:02:56.3]} 6. Bxf6 {[%clk 0:03:01.2]} 6... Qxf6 {[%clk
0:02:57.2]} 7. Qa4+ {[%clk 0:03:00.7]} 7... Nc6 {[%clk 0:02:57.1]} 8. e3 {[%clk
0:03:00.7]} 8... O-O {[%clk 0:02:54.6]} 9. Rc1 {[%clk 0:03:01.1]} 9... Rd8
{[%clk 0:02:33.9]} 10. a3 {[%clk 0:02:54.7]} 10... Bxc3+ {[%clk 0:02:23.7]} 11.
Rxc3 {[%clk 0:02:55.6]} 11... e5 {[%clk 0:02:18.4]} 12. cxd5 {[%clk 0:02:51.5]}
12... Rxd5 {[%clk 0:02:09.4]} 13. dxe5 {[%clk 0:02:49.7]} 13... Nxe5 {[%clk
0:01:59.4]} 14. Qe8+ {[%clk 0:02:05]} 14... Kh7 {[%clk 0:01:57.8]} 15. Be2
{[%clk 0:01:48.4]} 15... c6 {[%clk 0:00:44.7]} 16. O-O {[%clk 0:01:40.4]} 16...
Nxf3+ {[%clk 0:00:18.3]} 17. Bxf3 {[%clk 0:01:41.3]} 17... Rd8 {[%clk
0:00:12.9]} 18. Qe4+ {[%clk 0:01:40.2]} 18... Bf5 {[%clk 0:00:13.4]} 19. Qb4
{[%clk 0:01:40.6]} 19... Rd7 {[%clk 0:00:12.9]} 20. Qa5 {[%clk 0:01:20.3]} 20...
a6 {[%clk 0:00:11]} 21. Qb4 {[%clk 0:01:13.6]} 21... a5 {[%clk 0:00:10.5]} 22.
Qc5 {[%clk 0:01:10.5]} 22... a4 {[%clk 0:00:11]} 23. Rc4 {[%clk 0:01:06.2]}
23... Bd3 {[%clk 0:00:08.5]} 24. Rb4 {[%clk 0:01:02.3]} 24... Bxf1 {[%clk
0:00:06.8]} 25. Kxf1 {[%clk 0:01:01.8]} 25... g6 {[%clk 0:00:05.8]} 26. h3
{[%clk 0:01:00.6]} 26... Kg7 {[%clk 0:00:06.3]} 27. Qc2 {[%clk 0:00:58.1]} 27...
b5 {[%clk 0:00:04.3]} 28. Rf4 {[%clk 0:00:52.6]} 28... Qd6 {[%clk 0:00:03.3]}
29. Qxc6 {[%clk 0:00:49.4]} 29... Qd3+ {[%clk 0:00:03.3]} 30. Kg1 {[%clk
0:00:48.9]} 30... Rad8 {[%clk 0:00:04.2]} 31. Qf6+ {[%clk 0:00:47.5]} 31... Kg8
{[%clk 0:00:04.8]} 32. h4 {[%clk 0:00:44.1]} 32... Qd6 {[%clk 0:00:04.3]} 33.
Qc3 {[%clk 0:00:40.8]} 33... Qe6 {[%clk 0:00:04.8]} 34. h5 {[%clk 0:00:38.7]}
34... g5 {[%clk 0:00:04.9]} 35. Rf6 {[%clk 0:00:34.9]} 35... Qb3 {[%clk
0:00:03.4]} 36. Qe5 {[%clk 0:00:31.1]} 36... Qd3 {[%clk 0:00:02.6]} 37. Rxh6
{[%clk 0:00:27.6]} 1-0